Cogmind - Beta 17 @@@ ROGUE MODE // 2026.06.25 @ 21:04:56 Player: Petvaria Result: Destroyed by Optimus with Helical Railgun Performance ------------- Evolutions (0) 0 Regions Visited (4) 800 Robots Destroyed (32) 160 Value Destroyed (841) 841 Prototype IDs (10) 200 Alien Tech Used (0) 0 Bonus (9044) 9044 TOTAL SCORE: 11045 Bonus ------- Follower Combat Kills 67 Prayed to X0-1V1 5000 Major X0-1V1 Interference 3200 Registered with UFD 300 Met Optimus in HQ 500 Friendly Fire -23 Cogmind --------- Core Integrity 0/540 Matter 205/300 Energy 100/100 System Corruption 0% Temperature Cool (0) Movement Core (1400) Ox27 Location -8/Scraptown Parts ------- > --- POWER (2) -------- (None) > --- PROPULSION (3) --- (None) > --- UTILITY (2) ------ Huge Storage Unit Improved Light Armor Plating > --- WEAPON (1) ------- (None) > --- INVENTORY (25) --- Huge Storage Unit Structural Scanner Improved Signal Interpreter High-powered Tractor Beam Field Laser Heavy Laser Heavy Particle Cannon Heavy Particle Cannon Heavy Ion Cannon Heavy Plasma Cannon Flak Cannon Improved Grenade Launcher CPS Tube (2) CPS Tube (2) Thermal Lance Peak State ------------ > --- POWER ------------ Improved Ion Engine Fission Core > --- PROPULSION ------- Light Treads Light Treads Compact Wheel > --- UTILITY ---------- Huge Storage Unit X0-1V1's Piety Tracker > --- WEAPON ----------- Thermal Lance > --- INVENTORY -------- Light Nuclear Core Improved Treads Improved Treads Improved Medium Treads Improved Medium Treads Improved Titanium Leg Huge Storage Unit Structural Scanner Improved Signal Interpreter Medium Armor Plating Improved Light Armor Plating High-powered Tractor Beam Field Laser Heavy Laser Heavy Particle Cannon Heavy Particle Cannon Heavy Ion Cannon Heavy Plasma Cannon Coil Gun Flak Cannon Improved Grenade Launcher CPS Tube CPS Tube Scythe Vortex Trap [Rating: 41] Favorites ----------- Power Improved Ion Engine Engine Improved Ion Engine Power Core Fission Core Propulsion Light Treads Treads Light Treads Leg VSS Leg Wheel Compact Wheel Utility X0-1V1's Piety Tracker Device X0-1V1's Piety Tracker Storage Huge Storage Unit Protection Medium Armor Plating Weapon Field Laser Energy Gun Field Laser Ballistic Gun Assault Rifle Ballistic Cannon Flak Cannon Launcher Grenade Launcher Slashing Weapon Scythe Piercing Weapon Thermal Lance Build | -11 -10 -10 -8 -8 ------- Run | Yrd Mat Sub Rec Scr Slots Evolved . | . . . . . Power . | . . . . . Propulsion . | . . . . . Utility . | . . . . . Weapon . | . . . . . Parts Attached 37 | 7 2 5 10 13 Power 8 | 1 1 1 3 2 Engine 4 | 1 . 1 2 . Core 4 | . 1 . 1 2 Reactor . | . . . . . Propulsion 12 | 2 . 1 4 5 Treads 7 | 2 . . 1 4 Leg 3 | . . . 2 1 Wheel 2 | . . 1 1 . Hover . | . . . . . Flight . | . . . . . Utility 8 | 2 1 . 3 2 Device 2 | 1 1 . . . Storage 4 | 1 . . 3 . Processor . | . . . . . Hackware . | . . . . . Protection 2 | . . . . 2 Artifact . | . . . . . Weapon 9 | 2 . 3 . 4 Energy Gun 1 | . . . . 1 Energy Cannon . | . . . . . Ballistic Gun 4 | 2 . 1 . 1 Ballistic Cannon 1 | . . . . 1 Launcher 1 | . . 1 . . Special Weapon . | . . . . . Impact Weapon . | . . . . . Slashing Weapon 1 | . . 1 . . Piercing Weapon 1 | . . . . 1 Special Melee Weapon . | . . . . . Unidentified Prototypes 1 | . 1 . . . Parts Lost 19 | . . . 4 15 Power 6 | . . . 3 3 Propulsion 9 | . . . 1 8 Utility 2 | . . . . 2 Weapon 2 | . . . . 2 Highest Loss Streak 15 | . . . 2 15 To Critical Strikes 3 | . . . . 3 Average Backups 18 | 4 7 7 9 22 Power . | . 1 . . 1 Propulsion 4 | 2 4 2 . 5 Utility 5 | . . 1 4 6 Weapon 7 | . 1 3 4 9 Tool/Special . | . . . . . Unused Backups 32 | 1 . 5 . 26 Power . | . . . . . Propulsion 7 | . . 3 . 4 Utility 7 | 1 . . . 6 Weapon 16 | . . 2 . 14 Tool/Special 2 | . . . . 2 Average Slot Usage (%) 97 | . 100 89 97 97 Engine 16 | . 11 11 20 16 Core 6 | . 2 12 2 7 Treads 22 | . 28 13 15 24 Leg 1 | . . . 8 . Wheel 11 | . . 11 12 11 Device 12 | . 14 12 12 11 Storage 12 | . 14 12 12 12 Energy Gun 9 | . . 2 11 9 Ballistic Gun 2 | . 28 8 . . Peak Build Rating 41 | 7 21 24 27 41 Average Rating 27 | 5 9 21 24 31 On Entrance 14 | . 7 21 23 23 Avg Prop Armor Cover (%) 21 | . . 13 18 22 Naked Turns . | . . . . . Heaviest Build 169 | 15 15 17 94 169 Greatest Support 83 | 40 40 40 16 83 Greatest Overweight (x) 27 | . . 1 5 27 Average Overweight (x) 4 | . . . 2 5 Largest Inventory Capacity 25 | 8 8 8 25 25 Average Capacity 21 | 7 8 8 15 25 Most Carried 25 | 7 8 8 16 25 Average Carried 18 | 4 7 7 10 23 Final Capacity 25 | 8 8 8 25 25 Final Carried 16 | 6 8 8 16 15 Class Distribution -------------------- 84% | Commander-Mutant 15% | Mutant Dominant Class ---------------- Mutant | -10/Materials Mutant | -10/Subcaves Commander-Mutant | -8/Recycling Commander-Mutant | -8/Scraptown Resources | -11 -10 -10 -8 -8 ----------- Run | Yrd Mat Sub Rec Scr Matter Collected 1030 | 354 116 169 245 146 Remotely . | . . . . . Salvage Created 991 | 166 189 239 316 81 Parts 72 | 22 12 19 16 3 Haulers Intercepted . | . . . . . Recyclers Shooed 4 | 1 . . 3 . Parts Field Recycled . | . . . . . Retrieved Matter . | . . . . . Parts Self-Destructed 15 | . . 15 . . Prevented . | . . . . . Parts Restored . | . . . . . Kills | -11 -10 -10 -8 -8 ------- Run | Yrd Mat Sub Rec Scr Combat Hostiles Destroyed 23 | . 7 9 5 2 Melee 1 | . . 1 . . Guns 16 | . 7 3 5 1 Cannons 1 | . . . . 1 AOE 5 | . . 5 . . Classes Destroyed 9 | 2 2 1 2 2 Builder 1 | . . . 1 . Tunneler 5 | 5 . . . . Recycler 3 | 1 . . 2 . Swarmer 4 | . 3 1 . . Grunt 12 | . 4 6 2 . Sentry 3 | . . . 3 . Subdweller 2 | . . 2 . . Federalist 1 | . . . . 1 Scrapper 1 | . . . . 1 Best Kill Streak 5 | 2 5 5 3 1 Combat Bots Only 5 | . 5 5 3 1 Max Kills in Single Turn 2 | 1 1 2 1 1 Gunslinging . | . . . . . Exploded 2 | . . 2 . . Melee 1 | . . 1 . . Uniques/NPCs Destroyed . | . . . . . Combat | -11 -10 -10 -8 -8 -------- Run | Yrd Mat Sub Rec Scr Hostile Shots Fired 176 | . 28 47 22 79 Missed 38 | . 6 21 4 7 Hits 138 | . 22 26 18 72 Projectile 138 | . 22 26 18 72 Critical Strikes 9 | . 1 . . 8 Damage Taken 2704 | . 239 336 296 1833 Core 733 | . 69 121 59 484 Absorbed by Shields . | . . . . . Core Remaining (%) 100 | 100 . . . . Volleys Fired 99 | 14 16 24 29 16 Largest 2 | 2 2 1 1 1 Hottest 65 | 40 40 65 65 37 Shots Fired 129 | 28 32 24 29 16 Gun 119 | 28 32 20 29 10 Cannon 6 | . . . . 6 Launcher 4 | . . 4 . . Special . | . . . . . Kinetic 90 | 28 32 14 . 16 Thermal 35 | . . 6 29 . Explosive 4 | . . 4 . . Electromagnetic . | . . . . . Robot Hit Streak 24 | 4 6 11 24 3 Robot Miss Streak 5 | 2 2 4 4 5 Penetration Max . | . . . . . Secondary Targets . | . . . . . Shots Hit Robots 102 | 13 22 23 29 15 Core Hits 89 | 7 11 24 38 9 Critical Kills . | . . . . . Critical Parts Destroyed . | . . . . . Critical Strikes . | . . . . . Melee Attacks 8 | . . 3 . 5 Thermal 4 | . . . . 4 Impact . | . . . . . Slashing 4 | . . 3 . 1 Piercing . | . . . . . Sneak Attacks . | . . . . . Combat Hostiles . | . . . . . Follow-up Attacks . | . . . . . Damage Inflicted 1959 | 160 271 638 472 418 Guns 1292 | 160 271 261 472 128 Cannons 84 | . . . . 84 Explosions 346 | . . 346 . . Melee 237 | . . 31 . 206 Ramming . | . . . . . Kinetic 813 | 160 271 170 . 212 Thermal 769 | . . 91 472 206 Explosive 346 | . . 346 . . Electromagnetic . | . . . . . Impact . | . . . . . Slashing 31 | . . 31 . . Piercing . | . . . . . Highest Corruption 8 | . . 8 . . Average Corruption 8 | . . 8 . . Corruption Purged . | . . . . . Corruption Blocked . | . . . . . Effects 2 | . . 2 . . Message Errors 1 | . . 1 . . Data Loss (minor) 1 | . . 1 . . Overload Shots . | . . . . . Overflow Damage . | . . . . . Projectiles . | . . . . . Explosions . | . . . . . Melee . | . . . . . Knockbacks 1 | . . . . 1 Impact . | . . . . . Kinetic 1 | . . . . 1 Secondary . | . . . . . Self-Inflicted Damage 9 | . . 9 . . Shots 1 | . . 1 . . Rammed . | . . . . . Targets Rammed . | . . . . . Kicked . | . . . . . Crushed . | . . . . . Highest Temperature 402 | . 20 38 169 402 Average Temperature 137 | . 4 26 50 262 Received Heat Transfer 729 | . 117 165 99 348 Effects 5 | . . . . 5 Shutdowns 1 | . . . . 1 Interference 1 | . . . . 1 Matter Decay 2 | . . . . 2 Short Circuit 1 | . . . . 1 Siege Activations . | . . . . . Martial Activations . | . . . . . Shielding Activations . | . . . . . Robots Disrupted . | . . . . . Combat Hostiles . | . . . . . Robots Corrupted . | . . . . . Combat Hostiles . | . . . . . Parts Fried . | . . . . . Impact Corruptions . | . . . . . Robots Melted . | . . . . . Combat Hostiles . | . . . . . Parts Melted 3 | . . . . 3 Heat Transferred 780 | . . 115 575 90 Parts Sabotaged . | . . . . . Parts Stolen . | . . . . . Parts Stripped . | . . . . . Power Chain Reactions . | . . . . . Alert | -11 -10 -10 -8 -8 ------- Run | Yrd Mat Sub Rec Scr Maximum Alert Level . | . . . . . Low Security (%) 100 | 100 100 . 100 . Level 1 . | . . . . . Level 2 . | . . . . . Level 3 . | . . . . . Level 4 . | . . . . . Level 5 . | . . . . . High Security . | . . . . . Max Security . | . . . . . Peak Influence 164 | 10 128 . 164 . Initial 71 | . . . 71 . Average 21 | 2 14 . 27 . Influence Increases 757 | 30 160 272 295 . Destroy 0b10 Robot/C 460 | . 140 220 100 . Destroy 0b10 Robot/NC 45 | 30 . . 15 . Destroy Leader 20 | . 20 . . . Allied During Kill 23 | . . 7 16 . Lose Combat Pursuer 45 | . . 45 . . Miscellaneous 164 | . . . 164 . Influence Decreases 757 | 30 48 235 444 . Entered New Map 133 | . . 55 78 . Time Decay 534 | 30 48 140 316 . Lost Part 10 | . . . 10 . Lost Ally 80 | . . 40 40 . Squads Dispatched . | . . . . . Investigation . | . . . . . Extermination . | . . . . . Reinforcement . | . . . . . Assault . | . . . . . Garrison . | . . . . . Intercept . | . . . . . Searches Triggered . | . . . . . Construction Impeded . | . . . . . Haulers Reinforced . | . . . . . Active Scanning Responses . | . . . . . Cargo Convoy Interrupts . | . . . . . Stealth | -11 -10 -10 -8 -8 --------- Run | Yrd Mat Sub Rec Scr Distress Signals . | . . . . . Communications Jammed . | . . . . . Distress Signals . | . . . . . Times Spotted 34 | . 10 13 6 5 Peak Tracking Total 6 | . 6 5 3 5 Tactical Retreats 1 | . . 1 . . Traps | -11 -10 -10 -8 -8 ------- Run | Yrd Mat Sub Rec Scr Traps Triggered . | . . . . . Indirectly . | . . . . . Trap Hack Attempts . | . . . . . Triggered . | . . . . . Disarmed . | . . . . . Reprogrammed . | . . . . . Reused 1 | . . . . 1 Traps Extracted . | . . . . . Installed 1 | . . . . 1 Triggered . | . . . . . Most Traps Carried 1 | . . . . 1 Machines | -11 -10 -10 -8 -8 ---------- Run | Yrd Mat Sub Rec Scr Machines Disabled 4 | . . 1 . 3 Max in Single Turn 1 | . . . . 1 Machines Repaired . | . . . . . Machines Dismantled . | . . . . . Machines Sabotaged . | . . . . . Overloaded Fab Kills . | . . . . . Hacking | -11 -10 -10 -8 -8 --------- Run | Yrd Mat Sub Rec Scr Machines Accessed 7 | . . . 5 2 Terminals 5 | . . . 5 . Fabricators . | . . . . . Repair Stations . | . . . . . Recycling Units . | . . . . . Scanalyzers . | . . . . . Garrison Access . | . . . . . Total Hacks 15 | . . . 8 7 Successful 11 | . . . 4 7 Failed 4 | . . . 4 . Catastrophic 1 | . . . 1 . Database Lockouts . | . . . . . Manual 7 | . 1 . 6 . Terminals 8 | . . . 8 . Fabricators . | . . . . . Repair Stations . | . . . . . Recycling Units . | . . . . . Scanalyzers . | . . . . . Garrison Access . | . . . . . Terminal Hacks 7 | . . . . 7 Robot Analysis 6 | . . . . 6 Proto ID Catalog 1 | . . . . 1 Fabricator Hacks . | . . . . . Repair Station Hacks . | . . . . . Recycling Unit Hacks . | . . . . . Scanalyzer . | . . . . . Garrison Access Hacks . | . . . . . Unauthorized Hacks 4 | . . . 4 . Terminals 4 | . . . 4 . Botnet 1 | . . . 1 . Skim 3 | . . . 3 . Fabricators . | . . . . . Repair Stations . | . . . . . Recycling Units . | . . . . . Scanalyzers . | . . . . . Garrison Access . | . . . . . Data Cores Recovered . | . . . . . Used . | . . . . . Hacking Detections 4 | . . . 4 . Full Trace Events . | . . . . . Feedback Events . | . . . . . Feedback Blocked . | . . . . . Robot Schematics Acquired . | . . . . . Robots Built . | . . . . . Authchips . | . . . . . Time . | . . . . . Total Robot Build Rating . | . . . . . Part Schematics Acquired . | . . . . . Parts Built . | . . . . . Authchips . | . . . . . Time . | . . . . . Total Part Build Rating . | . . . . . Part Studies Acquired . | . . . . . Parts Repaired . | . . . . . Time . | . . . . . Parts Recycled . | . . . . . Recycled Matter . | . . . . . Retrieved Matter . | . . . . . Retrieved Components . | . . . . . Parts Scanalyzed . | . . . . . Part Schematics Acquired . | . . . . . Parts Damaged . | . . . . . Bothacking | -11 -10 -10 -8 -8 ------------ Run | Yrd Mat Sub Rec Scr Used RIF Installer . | . . . . . Robots Hacked . | . . . . . Non-combat . | . . . . . Combat . | . . . . . Robot Hacks Applied . | . . . . . Relay Couplers Released . | . . . . . Fabnet Peak Effective % . | . . . . . Robots Rewired 11 | . . . 11 . Allies Hacked . | . . . . . Hacks Repelled . | . . . . . Allies | -11 -10 -10 -8 -8 -------- Run | Yrd Mat Sub Rec Scr Total Allies 15 | . . 4 11 . Largest Group 11 | . . 3 11 10 Highest-Rated Group 150 | . . 90 150 145 Highest-Rated Ally 90 | . . 90 34 34 Total Orders 11 | . . . . 11 STAY 10 | . . . . 10 DROP 1 | . . . . 1 Ally Attacks 41 | . . 24 6 11 Total Damage 1208 | . . 690 100 418 Kills 9 | . . 6 . 3 Allies Corrupted . | . . . . . Allies Melted . | . . . . . X0-1V1 Amusement Gains 99 | . 2 . . 97 Good Acts 31 | . . 26 5 . Bad Acts 28 | . 1 16 4 7 Intel | -11 -10 -10 -8 -8 ------- Run | Yrd Mat Sub Rec Scr Active Infowar (turns) 432 | 13 419 . . . Seismic 432 | 13 419 . . . Robot Analysis Total 6 | . . . . 6 Derelict Logs Recovered . | . . . . . Drone Launches . | . . . . . Drone Recoveries . | . . . . . Exploration | -11 -10 -10 -8 -8 ------------- Run | Yrd Mat Sub Rec Scr Turns Passed 7531 | 223 500 286 1373 5149 Spaces Moved 3415 | 105 95 147 497 2571 Core 8 | 7 . . . 1 Treads 198 | 98 95 3 . 2 Legs 304 | . . . 304 . Wheels 2905 | . . 144 193 2568 Hover . | . . . . . Flight . | . . . . . Fastest Speed 50 | 50 160 100 90 175 Average Speed 184 | 152 160 107 219 184 Slowest Speed 1400 | 160 160 160 270 1400 Overloaded Moves . | . . . . . Propulsion Burnouts . | . . . . . Robots Hopped . | . . . . . Potential Cave-ins . | . . . . . Cave-ins Triggered . | . . . . . Exploration Rate (%) 42 | 4 14 17 89 90 Regions Visited 4 Branch Regions 3 Pre-discovered Areas . | . . . . . Known Exits Taken 1 | . . 1 . . Unknown Exits Taken 3 | 1 1 . 1 . Scrap Searched 8 | . . . . 8 Spaces Dug 2 | . . 2 . . Terrain Destroyed 16 | . . 15 . 1 Melee 2 | . . 2 . . Projectile 1 | . . . . 1 AOE 13 | . . 13 . . Terrain Rammed . | . . . . . Walls Destroyed . | . . . . . Machines Disabled . | . . . . . Actions | -11 -10 -10 -8 -8 --------- Run | Yrd Mat Sub Rec Scr Total 4513 | 140 412 244 750 2967 Wait 666 | . 296 47 30 293 Move 3411 | 104 94 146 496 2571 Hop . | . . . . . Pick Up 69 | 14 2 3 13 37 Fast Attach 5 | . 1 1 2 1 Attach 20 | 7 . 1 3 9 Detach 1 | . . . 1 . Swap 20 | . 1 7 5 7 Drop 36 | 1 2 3 3 27 Fire 99 | 14 16 24 29 16 Melee 8 | . . 3 . 5 Ram . | . . . . . Kick . | . . . . . Crush . | . . . . . Escape Stasis 9 | . . 9 . . Rewire 168 | . . . 168 . Trap 1 | . . . . 1 Miscellaneous . | . . . . . Route ------- -11/Scrapyard -10/Materials -10/Subcaves (discovered 3 exits: *Mat x2 / *Rec) -8/Recycling (discovered 2 exits: Fac / *Scr) -8/Scraptown (discovered 1 exit: *Fac) History --------- Turn | Location | Event 5 | -11/Scrapyard | Discovered new exit (range 15) 224 | -11/Scrapyard | Entered Materials 308 | -10/Materials | Build established: Mutant 396 | -10/Materials | Discovered new exit (range 5) 640 | -10/Materials | Prayed at D.C.S.S. Altar Unit 724 | -10/Materials | Entered Subcaves 724 | -10/Subcaves | X0-1V1 mutated your Weapon slot to Power slot 725 | -10/Subcaves | Approached by a straggling Scientist 736 | -10/Subcaves | Ranged accuracy permanently improved by X0-1V1 (+6%; -60 max core) 754 | -10/Subcaves | Discovered new exit (range 10) 754 | -10/Subcaves | X0-1V1 sent you into danger 789 | -10/Subcaves | Utility slot count permanently improved by X0-1V1 (+1) 792 | -10/Subcaves | Identified exit to Recycling 792 | -10/Subcaves | X0-1V1 revealed exit location to -8/Recycling 795 | -10/Subcaves | X0-1V1 activates XOMVISION 812 | -10/Subcaves | Core integrity permanently improved by X0-1V1 (+350) 820 | -10/Subcaves | X0-1V1 sent hostile G-34 Mercenary (x5) 824 | -10/Subcaves | X0-1V1 sent allied H-61 Shepherd (x1) 849 | -10/Subcaves | Identified exit to Materials 849 | -10/Subcaves | X0-1V1 revealed exit location to -8/Materials 908 | -10/Subcaves | X0-1V1 sent you into danger 966 | -10/Subcaves | Shifting Twisted Machinery released Battle Cannon 995 | -10/Subcaves | X0-1V1 sent allied S-10 Pest (x3) 1003 | -10/Subcaves | X0-1V1 mutated your Utility slot to Propulsion slot 1010 | -10/Subcaves | Entered Recycling 1010 | -8/Recycling | Accompanied by 2 allies 1021 | -8/Recycling | Identified exit to Factory 1021 | -8/Recycling | X0-1V1 revealed exit location to -6/Factory 1049 | -8/Recycling | Lost 3 allies 1231 | -8/Recycling | X0-1V1 added 0b10 threat records associated with you (minor) 1236 | -8/Recycling | X0-1V1 activates XOMVISION 1468 | -8/Recycling | Build established: Commander-Mutant 1896 | -8/Recycling | Core integrity restored by X0-1V1 (+108) 1956 | -8/Recycling | X0-1V1 sent you into danger 2334 | -8/Recycling | Scanned before Scraplab entrance 2359 | -8/Recycling | Entered Scraplab 2373 | -8/Recycling | Discovered new exit (range 3) 2383 | -8/Recycling | Entered Scraptown 2383 | -8/Scraptown | Accompanied by 10 allies 2658 | -8/Scraptown | Visited SPCMW 2682 | -8/Scraptown | Visited Cave Peace 3031 | -8/Scraptown | Visited Bundlers 3203 | -8/Scraptown | Visited Fellowship of the Rings 3252 | -8/Scraptown | Visited The Evicted 3647 | -8/Scraptown | Visited Shadow of the Wyrm 3708 | -8/Scraptown | Visited Cyclists 3764 | -8/Scraptown | Visited UFD Registry 3764 | -8/Scraptown | Registered with UFD as "Toolbot" 3799 | -8/Scraptown | Entered Cyclist Reading Room 3887 | -8/Scraptown | Visited Curators Association 3943 | -8/Scraptown | Visited Science Guys 4000 | -8/Scraptown | Visited LU-1G1's Boring Crew 4195 | -8/Scraptown | Visited Botcube Research 4232 | -8/Scraptown | Visited Scrapoid Pod Storage 4266 | -8/Scraptown | Visited Scrap Suit Storage 4283 | -8/Scraptown | Visited Modified Component R&D 4361 | -8/Scraptown | Visited Analyses Database 4437 | -8/Scraptown | Visited Junk Repository 4693 | -8/Scraptown | Found Lrg. Botcube 5178 | -8/Scraptown | Found Scrap Suit 5966 | -8/Scraptown | Discovered exit to Factory (range 13) 7027 | -8/Scraptown | Met Optimus 7027 | -8/Scraptown | Accepted into 0bPrime 7427 | -8/Scraptown | Civil war broke out across Scraptown 7429 | -8/Scraptown | Attacked by Scraptown defenders 7443 | -8/Scraptown | Found Thermal Lance 7484 | -8/Scraptown | Core integrity fell below 50% 7491 | -8/Scraptown | Lost 10 allies 7522 | -8/Scraptown | Core integrity fell below 20% 7532 | -8/Scraptown | Destroyed by Optimus with Helical Railgun Last Messages --------------- Slug penetrates Machine. Penetrated by Slug. Acquired 70 matter. Penetrated by Slug. Critical hit (Destroy). Coil Gun destroyed. Slug penetrates Wall. The unstable cave ceiling collapses. Critical hit (Destroy). Imp. Treads destroyed. Acquired 56 matter. Penetrated by Slug. Slug penetrates Wall. Penetrated by Slug. Imp. Titanium Leg destroyed. Slug penetrates Earth. Penetrated by Slug. Slug penetrates Earth. Penetrated by Slug. X0-1V1 snickers! Map ----- +----------------------------------------------------+ | "" X"#??????###"" "## "#????????????????? | | " ######### #"" "## !"#????????????????? | | " "#????????????????? | | " "## "#????????????????? | | " ######### #"" "## "#????????????????? | | "" ""#??????###"" "##"""""#????????????????? | | "" ##????????#"" "########????????????????? | | X"#????????#"" "#???????????????????????? | | ##????????#"" "#???????????????????????? | | ################"" ########????????????????? | | """"""""""""""""""" ## """"#????????????????? | | """""""""" """""""" """"#????????????????? | | ! ## " ""#????????????????? | | !%| # "#????????????????? | | *! ![ # #????????????????? | | % ! *% ! ## #????????????????? | | %%= == =%! # "????????????????? | | " " """""" """ [ ## #????????????????? | | ## # ###### ##### # """#????????????????? | | [!%= ## #"" ""#????????????????? | | [%! "## # # # *######??????????????????? | | =!* " " ## # # ##3!%#???????????????????????? | | %"" "# # # #; !#???????????????????????? | | ! " ####### #; !%#???????????????????????? | | "" " #; ==############????????????? | | " " """ # ## ! @ #????????????? | | " "#" # ## *[! ! ##????????????? | | " " """ # ## = #????????????? | | "" " # ## % #????????????? | | "" ######### = #????????????? | | ###""""""" "##???????# ;;;;########????????????? | | ###"""""""" ########## [%;#;#;???????????????????? | | "##"" "" #""""##" "# ; ??????????????????? | | "##" "#""""## " ##" # "# ?????????????????? | | [ "## ?????????????????? | | ==! " "#? #????????????????? | | *!%! "" "#??#????????????????? | | "##"" #"" "##!! #""" ##!###"##???????????????????? | | "##"""##"""##"""## ""####??#?????????????????????? | | ???################"##???????????????????????????? | | ?????????????????????????????????????????????????? | | ?????????????????????????????????????????????????? | | ?????????????????????????????????????????????????? | | ?????????????????????????????????????????????????? | | ?????????????????????????????????????????????????? | | ?????????????????????????????????????????????????? | | ?????????????????????????????????????????????????? | | ?????????????????????????????????????????????????? | | ?????????????????????????????????????????????????? | | ?????????????????????????????????????????????????? | +----------------------------------------------------+ Best States ------------- Heat Dissipation 85 Energy Generation 25 Energy Capacity 1590 Matter Stores 300 Matter Capacity 300 Sight Range 19 Terrain Scan Density 10 Armor Coverage 225 Evasion (%) 40 Recoil Reduction 3 Item Schematics ----------------- None Robot Schematics ------------------ None Fabricated ------------ Nothing Repaired ---------- Nothing Studied --------- None Alien Tech Used ----------------- None Achievements -------------- None Challenges ------------ None Game ------ Seed MappingPulsarShockpuncher Manual? 0 Play Time 00:42:37 Cumulative 447.7 hours Start 2026.06.25 @ 20:23:19 End 2026.06.25 @ 21:04:56 Sessions 1 Manual Loads 0 Difficulty Rogue Special Mode None Game No. 284 Rogue 284 Adventurer 0 Explorer 0 Win Type - Total 32 Types 16/1/7/2/1/1/1/1/0/2 Lore% 95 Gallery% 89 Achievement% 80 Wizard Run 0 Options --------- Layout 1 ASCII 0 Keyboard 0 Movement Numpad Keybinds 0 Fullscreen 1 Font 24/Proggy Map View 50x35 Zoom Use 0% Tactical HUD 0 Map Filters NONE Filters NONE Steam 1 RUN: 83f11fdd-8cd7-4a76-860b-03a7a9b4e2cf